bitfinex/quotes_SOLUSD_20260223
["timestamp","ask_amount","ask_price","bid_price","bid_amount"]
[1771855409337,3.86018801,80.66,80.631,1.99285554]
[1771855410735,0.20958543,80.707,80.651,1.99285554]
[1771855411033,3.86018801,80.69,80.661,1.99285554]
[1771855411838,12.39326302,80.689,80.663,1.99285554]
[1771855412035,3.86018801,80.67,80.642,1.99285554]
[1771855412239,3.86018801,80.66,80.635,1.99285554]
[1771855413733,3.86018801,80.66,80.637,1.99285554]
[1771855417527,3.86018801,80.65,80.63,1.99285554]
[1771855418041,12.39787252,80.659,80.63,1.99285554]
[1771855418539,12.39787252,80.659,80.631,1.99285554]
[1771855419836,12.61445601,80.659,80.631,1.99285554]
[1771855420044,0.21658349,80.658,80.631,1.99285554]
[1771855420546,12.39787252,80.659,80.631,1.99285554]
[1771855423224,12.61734022,80.659,80.631,1.99285554]
[1771855423445,12.61734022,80.659,80.632,1.99285554]
[1771855424359,0.22016817,80.639,80.62,0.1]
[1771855424532,3.86018801,80.63,80.62,0.1]
[1771855424732,0.22016817,80.639,80.62,0.1]
[1771855425534,3.86018801,80.64,80.62,2.09285554]
[1771855426742,12.39992857,80.646,80.621,1.99285554]
[1771855427837,3.86018801,80.66,80.621,1.99285554]
[1771855428140,3.69383402,80.661,80.631,1.99285554]
[1771855428456,3.86018801,80.66,80.633,1.99285554]
[1771855429149,12.39710403,80.664,80.633,1.99285554]
[1771855430153,12.39661756,80.668,80.641,1.99285554]
[1771855431153,0.22548989,80.667,80.641,1.99285554]
[1771855431661,12.39661756,80.668,80.641,1.99285554]
[1771855431851,12.39661756,80.668,80.642,12.40048609]
[1771855432053,12.39661756,80.668,80.643,1.99285554]
[1771855433052,3.86018801,80.68,80.643,1.99285554]
[1771855433361,3.86018801,80.68,80.645,1.99285554]
[1771855433856,3.86018801,80.68,80.651,1.99285554]
[1771855434258,12.39479914,80.679,80.651,1.99285554]
[1771855434963,3.86018801,80.68,80.651,1.99285554]
[1771855435161,3.86018801,80.67,80.651,1.99285554]
[1771855435367,16.49429847,80.67,80.645,1.99285554]
[1771855435777,4.09808762,80.67,80.645,1.99285554]
[1771855437567,4.09808762,80.67,80.647,1.99285554]
[1771855437568,3.87011572,80.66,80.647,1.99285554]
[1771855437770,4.09808762,80.67,80.647,1.99285554]
[1771855438865,3.87011572,80.66,80.641,1.99285554]
[1771855439048,3.87011572,80.65,80.632,1.99285554]
[1771855439561,0.23034182,80.659,80.633,14.39472574]
[1771855439764,0.23034182,80.659,80.634,1.99285554]
[1771855440162,3.87011572,80.66,80.634,1.99285554]
[1771855440370,3.87011572,80.67,80.634,1.99285554]
[1771855441370,30.97739891,80.704,80.651,1.99285554]
[1771855441677,12.39172728,80.699,80.671,1.99285554]
[1771855442367,12.39109786,80.704,80.671,1.99285554]
[1771855443562,12.39019192,80.709,80.673,1.99285554]
[1771855444072,55.88,80.711,80.681,1.99285554]
[1771855444372,3.87011572,80.71,80.681,1.99285554]
[1771855445069,0.23369756,80.689,80.658,1.99285554]
[1771855445276,3.87011572,80.68,80.658,1.99285554]
[1771855445678,3.87011572,80.68,80.659,1.99285554]
[1771855446275,12.39349668,80.688,80.659,1.99285554]
[1771855446473,3.69383402,80.703,80.661,1.99285554]
[1771855446676,12.39056123,80.707,80.671,1.99285554]
[1771855447663,3.69383402,80.715,80.681,1.99285554]
[1771855447664,12.38932256,80.715,80.681,1.99285554]
[1771855447883,3.87011572,80.71,80.681,1.99285554]
[1771855449076,16.25875797,80.72,80.681,1.99285554]
[1771855449260,3.87011572,80.72,80.681,1.99285554]
[1771855449664,3.87011572,80.72,80.683,1.99285554]
[1771855450675,3.87011572,80.72,80.691,1.99285554]
[1771855451254,3.69383402,80.727,80.691,1.99285554]
[1771855451475,3.87011572,80.72,80.691,1.99285554]
[1771855453478,10.35207721,80.72,80.693,1.99285554]
[1771855454784,0.23283853,80.719,80.693,1.99285554]
[1771855455286,10.35207721,80.72,80.694,14.38535064]
[1771855456061,10.35207721,80.72,80.695,1.99285554]
[1771855457586,0.23164968,80.709,80.682,1.99285554]
[1771855457983,0.23127336,80.716,80.684,2.06827961]
[1771855458277,10.35207721,80.72,80.684,2.06827961]
[1771855458486,0.23089504,80.719,80.684,2.06827961]
[1771855460086,0.22979458,80.732,80.69,10.35207721]
[1771855460393,0.22979458,80.747,80.718,2.0613689]
[1771855460685,10.35207721,80.74,80.718,2.0613689]
[1771855461264,0.22979458,80.747,80.718,2.0613689]
[1771855462383,12.38420765,80.748,80.72,2.0613689]
[1771855462589,12.38420765,80.748,80.721,2.0613689]
[1771855462973,3.69383402,80.757,80.731,2.0613689]
[1771855465301,12.38177898,80.764,80.733,2.0613689]
[1771855465480,0.22872304,80.767,80.741,2.0613689]
[1771855465687,12.38144763,80.766,80.741,2.0613689]
[1771855467285,12.38144763,80.766,80.743,2.0613689]
[1771855467477,12.38144763,80.766,80.742,12.38512793]
[1771855467478,0.22732092,80.785,80.751,2.0613689]
[1771855467797,3.69383402,80.777,80.751,2.0613689]
[1771855468784,0.22732092,80.785,80.753,2.0613689]
[1771855468993,12.37804146,80.789,80.761,2.0613689]
[1771855469393,6.47391388,80.803,80.771,2.0613689]
[1771855469585,12.37567241,80.804,80.771,2.0613689]
[1771855470481,3.69383402,80.807,80.781,2.0613689]
[1771855470793,22.7268241,80.81,80.783,2.0613689]
[1771855471007,3.69383402,80.807,80.783,2.0613689]
[1771855472699,12.37531866,80.806,80.783,2.0613689]
[1771855473999,0.22522229,80.799,80.777,12.37968341]
[1771855474396,0.22522229,80.799,80.769,2.0613689]
[1771855474699,3.85594521,80.79,80.769,14.44231357]
[1771855475401,12.37654397,80.798,80.77,2.0613689]
[1771855475998,3.85594521,80.8,80.77,2.0613689]
[1771855476207,12.37489905,80.809,80.781,2.0613689]
[1771855481306,3.85594521,80.81,80.781,2.0613689]
[1771855481509,12.37422377,80.814,80.783,2.0613689]
[1771855482714,3.85594521,80.81,80.783,2.0613689]
[1771855484917,3.85594521,80.81,80.785,2.0613689]
[1771855485989,0.22161619,80.814,80.785,2.0613689]
[1771855486208,3.85594521,80.81,80.785,2.0613689]
[1771855486413,0.22101612,80.799,80.773,2.0613689]
[1771855486790,3.85594521,80.8,80.773,2.0613689]
[1771855487013,3.85594521,80.8,80.775,2.0613689]
[1771855488112,12.37574711,80.804,80.777,1.99285554]
[1771855488303,12.37514693,80.808,80.777,1.99285554]
[1771855488504,12.37514693,80.808,80.781,1.99285554]
[1771855491103,12.37514693,80.808,80.782,1.99285554]
[1771855495010,12.37514693,80.808,80.72,3.85594521]
[1771855495011,0.2,80.82,80.784,1.99285554]
[1771855495208,12.37332805,80.819,80.784,1.99285554]
[1771855496300,0.21803694,80.818,80.784,1.99285554]
[1771855496502,3.85594521,80.81,80.784,1.99285554]
[1771855497320,3.85637284,80.81,80.786,1.99285554]
[1771855498508,4.05637284,80.82,80.791,1.99285554]
[1771855498823,12.37332805,80.819,80.791,1.99285554]
[1771855504950,0.2,80.83,80.801,1.99285554]
[1771855505225,0.21584329,80.829,80.801,1.99285554]
[1771855505539,0.21584329,80.809,80.771,1.99285554]
[1771855506233,3.85637284,80.81,80.771,1.99285554]
[1771855506813,3.85637284,80.81,80.781,1.99285554]
[1771855507732,0.21538504,80.799,80.777,1.99285554]
[1771855508037,3.85637284,80.79,80.75,3.85637284]
[1771855508327,0.41538505,80.794,80.76,3.85637284]
[1771855509331,4.26739181,80.8,80.76,3.85637284]
[1771855509725,12.37485923,80.809,80.771,43.33238414]
[1771855509919,12.7858782,80.809,80.772,1.97871276]
[1771855511042,0.40672664,80.808,80.774,1.97871276]
[1771855511241,0.40672664,80.808,80.781,1.97871276]
[1771855511824,0.4025044,80.825,80.791,1.97871276]
[1771855512032,3.69383402,80.829,80.801,1.97871276]
[1771855512228,12.37179725,80.829,80.801,1.97871276]
[1771855513333,12.37179725,80.829,80.802,1.97871276]
[1771855513541,0.2,80.83,80.811,1.97871276]
[1771855514035,12.36813042,80.853,80.821,1.97871276]
[1771855514228,55.91894259,80.878,80.831,1.97871276]
[1771855514229,12.36730539,80.859,80.831,1.97871276]
[1771855514437,6.46161776,80.878,80.841,1.97871276]
[1771855514733,12.36460754,80.876,80.851,1.97871276]
[1771855516746,3.85637284,80.86,80.831,1.97871276]
[1771855517642,12.36436403,80.878,80.853,1.97034815]
[1771855517820,12.36460754,80.876,80.853,1.97034815]
[1771855522549,3.69383402,80.895,80.862,1.9897467]
[1771855522751,3.89383402,80.9,80.873,1.9897467]
[1771855522948,0.2,80.9,80.881,1.9897467]
[1771855524634,3.85637284,80.89,80.868,12.36573335]
[1771855524850,0.34428477,80.898,80.87,3.85637284]
[1771855525035,12.36139782,80.897,80.871,1.9897467]
[1771855528147,12.36139782,80.897,80.872,1.9897467]
[1771855528553,0.2,80.9,80.872,1.9897467]
[1771855529744,0.2,80.9,80.88,3.85637284]
[1771855529948,4.05637284,80.93,80.891,1.9897467]
[1771855530154,12.88030339,80.929,80.901,1.9897467]
[1771855531036,3.85637284,80.91,80.873,43.27773174]
[1771855531348,3.85637284,80.9,80.874,1.9897467]
[1771855531545,3.85637284,80.9,80.843,3.69383402]
[1771855531546,0.52063176,80.889,80.861,1.9897467]
[1771855531930,0.52063176,80.889,80.862,1.9897467]
[1771855532133,12.36277321,80.888,80.862,1.9897467]
[1771855532344,0.52063176,80.889,80.862,1.9897467]
[1771855532933,12.88028198,80.888,80.862,1.9897467]
[1771855533151,0.51441409,80.887,80.862,1.9897467]
[1771855533342,0.51441409,80.887,80.863,1.9897467]
[1771855536158,12.3630789,80.886,80.863,1.9897467]
[1771855537459,12.3630789,80.886,80.851,30.92095727]
[1771855537859,14.33815532,80.886,80.851,30.92095727]
[1771855538154,1.97507642,80.89,80.86,3.85637284]
[1771855538340,1.97507642,80.889,80.86,3.85637284]
[1771855539453,1.97507642,80.889,80.851,43.28938808]
[1771855539646,1.97507642,80.879,80.854,1.9897467]
[1771855541659,12.36335903,80.885,80.856,1.9897467]
[1771855541859,1.97507642,80.886,80.856,1.9897467]
[1771855542055,14.33820001,80.886,80.856,1.9897467]
[1771855542262,14.33820001,80.886,80.86,3.85637284]
[1771855542478,14.33820001,80.886,80.861,1.9897467]
[1771855542844,1.97507642,80.886,80.861,1.9897467]
[1771855543248,12.36323174,80.885,80.861,1.9897467]
[1771855543962,1.97507642,80.879,80.858,12.36725085]
[1771855545361,1.97507642,80.879,80.853,1.9897467]
[1771855545960,1.97507642,80.877,80.853,1.9897467]
[1771855546345,1.97507642,80.877,80.854,14.35771859]
[1771855546650,1.97507642,80.877,80.854,1.9897467]
[1771855546851,1.97507642,80.869,80.846,14.35892061]
[1771855548975,1.97507642,80.869,80.794,6.2]
[1771855548976,1.95333478,80.859,80.835,1.92052243]
[1771855550259,1.95333478,80.867,80.837,1.92052243]
[1771855551745,1.95333478,80.867,80.841,1.92052243]
[1771855551948,3.69383402,80.867,80.841,1.92052243]
[1771855552145,2.47215037,101.33,80.84,3.85637284]
[1771855552146,3.85637284,80.89,80.861,1.92052243]
[1771855552366,3.69383402,80.887,80.861,1.92052243]
[1771855552661,1.95333478,80.886,80.861,1.92052243]
[1771855553065,1.95333478,80.869,80.841,1.92052243]
[1771855553869,1.95333478,80.878,80.843,1.92052243]
[1771855554070,12.36414891,80.879,80.843,1.92052243]
[1771855554071,1.95333478,80.869,80.843,1.92052243]
[1771855555370,1.95333478,80.878,80.843,1.92052243]
[1771855556259,12.36445466,80.877,80.845,1.92052243]
[1771855557271,12.36445466,80.877,80.851,1.92052243]
[1771855557668,1.95333478,80.883,80.851,1.92052243]
[1771855558376,5.80295218,80.88,80.853,1.92052243]
[1771855558778,3.8496174,80.88,80.853,1.92052243]
[1771855559070,1.95333478,80.879,80.853,1.92052243]
[1771855559371,1.95333478,80.879,80.855,1.92052243]
[1771855559955,12.36347213,80.884,80.855,1.92052243]
[1771855560369,1.95333478,80.869,80.844,1.92052243]
[1771855561371,1.95333478,80.891,80.861,1.92052243]
[1771855563180,1.95333478,80.898,80.871,1.92052243]
[1771855564252,12.36035842,80.904,80.871,1.92052243]
[1771855564871,1.95333478,80.903,80.871,1.92052243]
[1771855565057,1.95333478,80.889,80.865,1.92052243]
[1771855565380,1.95333478,80.889,80.866,12.36613657]
[1771855565961,3.8496174,80.88,80.858,14.28778151]
[1771855566159,3.8496174,80.88,80.859,1.92052243]
[1771855567056,1.95333478,80.882,80.859,1.92052243]
[1771855568469,1.95333478,80.882,80.85,3.8496174]
[1771855568470,1.95333478,80.882,80.861,1.92052243]
[1771855568663,12.36358852,80.883,80.861,1.92052243]
[1771855569566,1.95333478,80.887,80.861,1.92052243]
[1771855571482,12.3630789,80.886,80.863,1.92052243]
[1771855571679,12.3630789,80.886,80.811,14.92327968]
[1771855571680,1.92052243,80.882,80.811,14.92327968]
[1771855571879,1.92052243,80.882,80.768,49.5240384]
[1771855571880,3.8496174,80.87,80.84,3.8496174]
[1771855572059,1.92052243,80.875,80.84,3.8496174]
[1771855572960,5.77256494,80.88,80.85,3.8496174]
[1771855573169,14.28602644,80.886,80.85,3.8496174]
[1771855573370,1.9253621,80.885,80.803,3.69383402]
[1771855573576,1.9253621,80.883,80.85,3.8496174]
[1771855573754,1.9253621,80.883,80.851,1.92052243]
[1771855574358,3.8496174,80.88,80.851,1.92052243]
[1771855574559,3.8496174,80.88,80.853,1.92052243]
[1771855574868,1.92772648,80.879,80.853,1.92052243]
[1771855575574,1.92772648,80.879,80.855,1.92052243]
[1771855575777,12.36325964,80.885,80.855,1.92052243]
[1771855575977,3.8496174,80.88,80.855,1.92052243]
[1771855576886,1.9323952,80.879,80.855,1.92052243]
[1771855577570,1.9323952,80.879,80.856,12.36766597]
[1771855577772,1.9323952,80.879,80.856,14.38484556]
[1771855579868,3.8496174,80.87,80.845,2.00373728]
[1771855580067,1.87696789,80.859,80.838,2.00373728]
[1771855580269,3.8496174,80.86,80.838,2.00373728]
[1771855581290,5.72658529,80.86,80.84,2.00373728]
[1771855581475,1.87696789,80.859,80.84,2.00373728]
[1771855581673,3.8496174,80.85,80.834,2.00373728]
[1771855581892,1.87696789,80.849,80.83,12.37151632]
[1771855582183,3.8496174,80.85,80.831,2.00373728]
[1771855583198,3.8496174,80.85,80.832,12.37133808]
[1771855584993,3.8496174,80.85,80.832,14.37507536]
[1771855586095,3.8496174,80.86,80.833,2.00373728]
[1771855586290,12.36612437,80.867,80.833,2.00373728]
[1771855586598,14.24309226,80.867,80.833,2.00373728]
[1771855586771,1.87696789,80.866,80.833,2.00373728]
[1771855586976,3.8496174,80.86,80.833,2.00373728]
[1771855587385,16.21673235,80.86,80.835,2.00373728]
[1771855588000,1.87696789,80.859,80.835,2.00373728]
[1771855589193,12.36736006,80.858,80.837,2.00373728]
[1771855589999,1.87696789,80.868,80.837,2.00373728]
[1771855590197,1.87696789,80.878,80.837,2.00373728]
[1771855590379,1.87696789,80.869,80.837,2.00373728]
[1771855591989,12.36583073,80.868,80.837,2.00373728]
[1771855592194,3.8496174,80.86,80.839,2.00373728]
[1771855593689,12.36720711,80.859,80.839,2.00373728]
[1771855594601,3.8496174,80.87,80.841,2.00373728]
[1771855594806,1.87696789,80.869,80.841,2.00373728]
[1771855595506,1.87696789,80.869,80.843,2.00373728]
[1771855595507,3.8496174,80.86,80.843,2.00373728]
[1771855597794,3.8496174,80.86,80.844,12.36950175]
[1771855599207,1.87696789,80.859,80.835,2.00373728]
[1771855599806,3.8496174,80.88,80.841,2.00373728]
[1771855600008,3.8496174,80.88,80.836,43.29754069]
[1771855600009,1.87696789,80.897,80.851,2.00373728]
[1771855600188,1.87696789,80.888,80.851,2.00373728]
[1771855600807,1.87696789,80.879,80.851,2.00373728]
[1771855601107,3.8496174,80.86,80.845,2.00373728]
[1771855601816,1.87696789,80.859,80.827,2.00373728]
[1771855602609,1.87696789,80.859,80.828,2.00373728]
[1771855603612,1.87696789,80.859,80.83,2.00373728]
[1771855604708,3.8496174,80.85,80.83,2.00373728]
[1771855604900,1.87696789,80.857,80.816,30.93440265]
[1771855604901,3.8496174,80.84,80.825,12.3723]
[1771855605686,3.8496174,80.84,80.818,2.00373728]
[1771855605687,1.87696789,80.838,80.818,2.00373728]
[1771855605913,1.87696789,80.829,80.806,2.00373728]
[1771855606205,3.8496174,80.82,80.797,2.00373728]
[1771855607714,3.8496174,80.82,80.798,14.32795676]
[1771855607908,3.8496174,80.82,80.799,1.95141279]
[1771855608814,5.72155859,80.82,80.799,1.95141279]
[1771855609110,1.87194119,80.809,80.787,1.95141279]
[1771855609812,1.87194119,80.816,80.787,1.95141279]
[1771855612699,1.87194119,80.809,80.783,12.37882391]
[1771855612918,1.87194119,80.809,80.784,1.95141279]
[1771855614815,1.87194119,80.808,80.785,12.37853561]
[1771855615194,1.87194119,80.808,80.785,14.3299484]
[1771855615412,3.8496174,80.81,80.786,1.95141279]
[1771855616721,1.87194119,80.808,80.778,1.95141279]
[1771855616917,1.87194119,80.806,80.779,1.95141279]
[1771855618526,12.37547181,80.805,80.781,1.95141279]
[1771855620215,14.247413,80.805,80.781,1.95141279]
[1771855620708,1.87194119,80.83,80.782,1.95141279]
[1771855620910,1.87194119,80.838,80.811,1.95141279]
[1771855622728,1.87194119,80.845,80.821,1.95141279]
[1771855623107,1.87194119,80.851,80.831,1.95141279]
[1771855624626,1.87194119,80.851,80.832,12.37133808]
[1771855624820,1.87194119,80.851,80.828,12.3718323]
[1771855625131,1.87194119,80.839,80.8,3.85643879]
[1771855625531,1.87194119,80.839,80.81,3.85643879]
[1771855626327,1.87194119,80.829,80.8,3.85643879]
[1771855626916,1.87194119,80.829,80.755,266.23738465]
[1771855626917,1.87194119,80.809,80.757,1.95141279]
[1771855627124,1.87194119,80.809,80.771,1.95141279]
[1771855629224,1.87194119,80.809,80.773,1.95141279]
[1771855629919,1.87194119,80.808,80.78,10.32983976]
[1771855630118,1.87194119,80.808,80.781,1.95141279]
[1771855630825,1.87194119,80.807,80.772,14.33194069]
[1771855631423,1.87194119,80.805,80.772,14.33194069]
[1771855631638,1.87194119,80.805,80.78,10.32983976]
[1771855632132,1.87194119,80.816,80.791,1.95141279]
[1771855633527,1.87194119,80.816,80.792,12.37746311]
[1771855634127,1.87194119,80.814,80.79,10.32983976]
[1771855634331,1.87194119,80.814,80.791,12.37761631]
[1771855636122,12.37424671,80.813,80.791,12.37761631]
[1771855636423,1.87194119,80.812,80.791,12.37761631]
[1771855637136,1.87194119,80.812,80.792,1.95141279]
[1771855637838,1.87194119,80.812,80.786,12.37832263]
[1771855640225,1.94481413,80.799,80.755,1.97365198]
[1771855640445,1.94481413,80.809,80.781,1.97365198]
[1771855642231,1.94481413,80.809,80.782,12.37899532]
[1771855643454,1.94481413,80.829,80.801,1.97365198]
[1771855643631,1.94481413,80.838,80.81,10.32983976]
[1771855643944,1.94481413,80.838,80.808,1.97365198]
[1771855644242,1.94481413,80.838,80.801,1.97365198]
[1771855644434,1.94481413,80.836,80.802,14.34958326]
[1771855644634,1.94481413,80.836,80.803,1.97365198]
[1771855646947,1.94481413,80.834,80.805,1.97365198]
[1771855648148,10.32983976,80.83,80.777,43.32916547]
[1771855648445,1.94481413,80.829,80.791,1.97365198]
[1771855649757,1.94481413,80.827,80.793,1.97365198]
[1771855651635,3.85487505,80.84,80.801,1.97365198]
[1771855651841,1.94481413,80.847,80.821,1.97365198]
[1771855656053,1.94481413,80.845,80.819,12.37328891]
[1771855656364,1.94481413,80.845,80.815,12.37382605]
[1771855656583,1.94481413,80.845,80.815,14.34747803]
[1771855657669,1.94481413,80.845,80.816,1.97365198]
[1771855659775,1.94481413,80.851,80.821,1.97365198]
[1771855659981,1.94481413,80.859,80.831,1.97365198]
[1771855660274,1.94481413,80.859,80.84,3.85487505]
[1771855661060,1.94481413,80.859,80.818,1.97365198]
[1771855661276,1.94481413,80.859,80.831,1.97365198]
[1771855661778,1.94481413,80.859,80.832,12.37133808]
[1771855661959,1.94481413,80.859,80.833,1.97365198]
[1771855665974,1.94481413,80.859,80.834,12.37103199]
[1771855666174,1.94481413,80.859,80.835,1.97365198]
[1771855666380,1.94481413,80.859,80.834,12.37103199]
[1771855666381,1.94481413,80.867,80.841,1.97365198]
[1771855666886,1.94481413,80.877,80.841,1.97365198]
[1771855667086,1.94481413,80.877,80.851,1.97365198]
[1771855668084,1.94481413,80.877,80.852,12.36827784]
[1771855670389,12.36381471,80.882,80.853,1.925697]
[1771855670589,1.81823532,80.881,80.853,1.925697]
[1771855670971,1.81823532,80.881,80.852,12.36827784]
[1771855671180,1.81823532,80.879,80.852,12.36827784]
[1771855671991,12.36418545,80.879,80.852,12.36827784]
[1771855672189,1.81823532,80.878,80.852,12.36827784]
[1771855673387,1.81823532,80.869,80.842,12.36980777]
[1771855674979,1.81823532,80.869,80.843,1.925697]
[1771855677007,1.81823532,80.869,80.844,12.36950175]
[1771855678903,1.81823532,80.867,80.844,12.36950175]
[1771855679611,1.81823532,80.859,80.833,12.37113355]
[1771855680301,1.81823532,80.859,80.834,1.925697]
[1771855681300,1.81823532,80.859,80.84,5.77626911]
[1771855681681,1.81823532,80.865,80.842,1.925697]
[1771855683197,1.81823532,80.871,80.842,1.925697]
[1771855684001,1.81823532,80.871,80.844,1.925697]
[1771855685504,1.81823532,80.869,80.844,1.925697]
[1771855689406,1.81823532,80.869,80.845,12.36934875]
[1771855690201,1.81823532,80.869,80.845,14.29504575]
[1771855690389,1.81823532,80.869,80.846,1.925697]
[1771855695010,1.81823532,80.869,80.851,1.925697]
[1771855695212,1.81823532,80.875,80.852,1.925697]
[1771855696797,1.81823532,80.875,80.85,3.85057211]
[1771855697912,1.85099242,80.873,80.847,14.29473975]
[1771855698713,1.85099242,80.869,80.837,12.3704343]
[1771855700597,1.77179758,80.867,80.837,1.96036415]
[1771855702013,1.77179758,80.879,80.841,1.96036415]
[1771855702203,1.77179758,80.879,80.85,5.81093626]
[1771855702828,1.77179758,80.876,80.852,1.96036415]
[1771855704225,1.77179758,80.874,80.852,1.96036415]
[1771855705236,1.77179758,80.88,80.861,1.96036415]
[1771855707932,3.69383402,80.89,80.863,1.96036415]
[1771855708115,1.77179758,80.889,80.87,3.85057211]
[1771855708629,1.77179758,80.889,80.87,5.81093626]
[1771855710031,1.77179758,80.889,80.871,12.36537201]
[1771855710232,1.77179758,80.897,80.872,1.96036415]
[1771855712818,12.36155063,80.896,80.872,1.96036415]
[1771855713023,1.77179758,80.895,80.872,1.96036415]
[1771855713228,1.77179758,80.895,80.874,1.96036415]
[1771855714327,1.77179758,80.9,80.88,3.85057211]
[1771855714527,1.77179758,80.9,80.878,1.96036415]
[1771855714932,1.77179758,80.905,80.879,12.36402722]
[1771855715149,3.69383402,80.926,80.87,16.21606478]
[1771855715150,1.77179758,80.903,80.87,16.21606478]
[1771855715435,1.77179758,80.899,80.869,12.36565949]
[1771855715620,1.77179758,80.899,80.868,1.96036415]
[1771855715940,1.77179758,80.899,80.87,3.85057211]
[1771855716140,1.77179758,80.899,80.871,1.96036415]
[1771855717936,12.36032829,80.904,80.871,1.96036415]
[1771855717937,1.77179758,80.897,80.872,12.36521911]
[1771855718236,1.77179758,80.897,80.872,14.32558326]
[1771855718439,1.77179758,80.897,80.873,1.96036415]
[1771855719033,1.77179758,80.897,80.88,3.85057211]
[1771855719944,1.77179758,80.914,80.891,1.96036415]
[1771855720125,1.77179758,80.913,80.891,1.96036415]
[1771855720324,1.77179758,80.913,80.889,12.36248604]
[1771855720829,1.77179758,80.913,80.886,1.96036415]
[1771855721839,0.2,80.93,80.873,1.96036415]
[1771855721840,1.77179758,80.909,80.873,1.96036415]
[1771855722032,1.77179758,80.899,80.873,1.96036415]
[1771855724838,1.77179758,80.897,80.873,1.96036415]
[1771855725040,1.77179758,80.889,80.861,12.36690122]
[1771855725444,1.77179758,80.889,80.861,14.32726537]
[1771855725753,1.77179758,80.889,80.862,1.96036415]
[1771855726629,1.77179758,80.889,80.863,12.36659535]
[1771855726825,1.77179758,80.887,80.846,1.96036415]
[1771855727030,1.77179758,80.869,80.841,12.36996078]
[1771855727247,1.77179758,80.859,80.836,12.37065325]
[1771855730357,1.77179758,80.859,80.84,3.85057211]
[1771855735960,1.84239762,80.858,80.832,12.37131929]
[1771855736170,1.84239762,80.858,80.832,14.25205817]
[1771855736466,1.84239762,80.858,80.833,1.88073888]
[1771855736962,0.5,80.849,80.833,1.88073888]
[1771855737755,0.5,80.849,80.834,12.37103199]
[1771855739560,0.5,80.849,80.836,12.37072591]
[1771855740056,0.5,80.849,80.835,1.88073888]
[1771855740359,1.84239762,80.847,80.821,1.88073888]
[1771855740858,1.84239762,80.847,80.815,1.88073888]
[1771855741064,1.84239762,80.829,80.802,12.37578601]
[1771855741277,3.69383402,80.837,80.792,1.88073888]
[1771855741470,1.84239762,80.833,80.803,1.88073888]
[1771855741760,1.84239762,80.832,80.808,12.37493049]
[1771855743363,1.84239762,80.83,80.805,1.88073888]
[1771855746474,1.84239762,80.829,80.806,12.37531866]
[1771855747165,1.84239762,80.819,80.786,1.88073888]
[1771855747550,1.84239762,80.819,80.791,1.88073888]
[1771855748757,1.84239762,80.825,80.801,1.88073888]
[1771855748952,1.84239762,80.833,80.81,3.8538117]
[1771855749147,1.84239762,80.833,80.81,5.73455058]
[1771855749559,1.84239762,80.833,80.81,1.88073888]
[1771855751072,1.84239762,80.831,80.81,1.88073888]
[1771855751758,1.84239762,80.831,80.81,5.73455058]
[1771855751954,0.5,80.823,80.81,5.73455058]
[1771855752448,0.5,80.823,80.811,1.88073888]
[1771855752652,0.5,80.823,80.81,3.8538117]
[1771855752862,0.5,80.813,80.81,3.8538117]
[1771855753048,0.5,80.823,80.804,1.88073888]
[1771855755167,0.5,80.823,80.81,3.8538117]
[1771855756878,1.84239762,80.822,80.81,3.8538117]
[1771855757081,1.84239762,80.822,80.805,12.37547181]
[1771855757284,1.84239762,80.822,80.806,1.88073888]
[1771855757583,0.5,80.823,80.806,1.88073888]
[1771855758687,0.5,80.823,80.808,1.83339783]
[1771855759774,0.5,80.823,80.811,1.75797167]
[1771855760366,2.38511587,80.833,80.811,1.75797167]
[1771855760575,1.88511587,80.832,80.812,14.13237151]
[1771855764873,1.88511587,80.832,80.778,99.03640836]
[1771855764874,1.88511587,80.829,80.798,1.75797167]
[1771855765781,1.88511587,80.829,80.8,3.8538117]
[1771855765989,1.88511587,80.829,80.801,1.75797167]
[1771855767091,1.88511587,80.827,80.801,1.75797167]
[1771855767290,1.88511587,80.827,80.8,12.37614168]
[1771855767595,0.5,80.822,80.801,1.75797167]
[1771855767791,1.88511587,80.821,80.801,1.75797167]
[1771855768680,0.5,80.812,80.801,1.75797167]
[1771855769895,0.5,80.812,80.802,14.13390295]
[1771855771196,0.5,80.812,80.803,1.75797167]
[1771855774214,0.5,80.812,80.804,14.13359663]
[1771855774388,0.5,80.822,80.805,1.75797167]
[1771855774788,3.8538117,80.84,80.811,1.75797167]
[1771855775480,3.69383402,80.837,80.811,1.75797167]
[1771855776904,2.38511587,80.832,80.813,1.75797167]
[1771855777198,1.88511587,80.831,80.813,1.75797167]
[1771855778506,1.88511587,80.829,80.806,1.75797167]
[1771855779309,1.88511587,80.827,80.806,1.75797167]
[1771855779501,1.88511587,80.827,80.802,1.75797167]
[1771855782006,1.88511587,80.825,80.802,1.75797167]
[1771855782406,1.88511587,80.825,80.803,14.13374979]
[1771855782723,1.88511587,80.825,80.803,12.37577812]
[1771855782916,0.5,80.819,80.804,1.75797167]
[1771855783403,1.88511587,80.818,80.804,1.75797167]
[1771855783721,0.5,80.809,80.795,1.75797167]
[1771855785815,1.88511587,80.807,80.789,1.75797167]
[1771855786402,1.88511587,80.807,80.791,1.75797167]